Workbook

Sheet Orçamento do Casamento
B2: KAYLA + JACOB CASAMENTO
B5: CATEGORIA | C5: CUSTO ESTIMADO | D5: CUSTO REAL | E5: VARIAÇÃO | F5: % DO ORÇAMENTO | J5: Não classificado | K5: Custos Estimados | L5: Custos Reais | M5: Valor Estimado - Posição na Classificação | N5: Classificação | O5: # | P5: Selecionados
B6: =P6 -> Recepção | C6: =VLOOKUP(TBL_Summary[[#This Row],[CATEGORIA]],TBL_RankingData,2,FALSE) -> R$ 14,500 | D6: =IF(VLOOKUP(TBL_Summary[[#This Row],[CATEGORIA]],TBL_RankingData,3,FALSE)=0,"",VLOOKUP(TBL_Summary[[#This Row],[CATEGORIA]],TBL_RankingData,3,FALSE)) -> R$ 12,800 | E6: =IF(OR(TBL_Summary[[#This Row],[CUSTO ESTIMADO]]="",TBL_Summary[[#This Row],[CUSTO REAL]]=""),"",TBL_Summary[[#This Row],[CUSTO ESTIMADO]]-TBL_Summary[[#This Row],[CUSTO REAL]]) -> R$ 1,700 | F6: =TBL_Summary[[#This Row],[CUSTO ESTIMADO]]/SUM(TBL_Summary[CUSTO ESTIMADO]) -> 48.7% | J6: Recepção | K6: =TBL_Reception[[#Totals],[ESTIMADO]] -> 14500 | L6: =TBL_Reception[[#Totals],[REAL]] -> 12800 | M6: =K6-O6/100 -> 14499.99 | N6: =_xlfn.RANK.AVG(M6,$M$6:$M$15) -> 1 | O6: 1 | P6: =INDEX(TBL_RankingData,MATCH(O6,$N$6:$N$15,0),1) -> Recepção
B7: =P7 -> Vestimenta | C7: =VLOOKUP(TBL_Summary[[#This Row],[CATEGORIA]],TBL_RankingData,2,FALSE) -> R$ 4,000 | D7: =IF(VLOOKUP(TBL_Summary[[#This Row],[CATEGORIA]],TBL_RankingData,3,FALSE)=0,"",VLOOKUP(TBL_Summary[[#This Row],[CATEGORIA]],TBL_RankingData,3,FALSE)) -> R$ 2,900 | E7: =IF(OR(TBL_Summary[[#This Row],[CUSTO ESTIMADO]]="",TBL_Summary[[#This Row],[CUSTO REAL]]=""),"",TBL_Summary[[#This Row],[CUSTO ESTIMADO]]-TBL_Summary[[#This Row],[CUSTO REAL]]) -> R$ 1,100 | F7: =TBL_Summary[[#This Row],[CUSTO ESTIMADO]]/SUM(TBL_Summary[CUSTO ESTIMADO]) -> 13.4% | J7: Vestimenta | K7: =TBL_Attire[[#Totals],[ESTIMADO]] -> 4000 | L7: =TBL_Attire[[#Totals],[REAL]] -> 2900 | M7: =K7-O7/100 -> 3999.98 | N7: 2 | O7: 2 | P7: Vestimenta
B8: Flores e decorações | C8: =VLOOKUP(TBL_Summary[[#This Row],[CATEGORIA]],TBL_RankingData,2,FALSE) -> R$ 3,000 | D8: =IF(VLOOKUP(TBL_Summary[[#This Row],[CATEGORIA]],TBL_RankingData,3,FALSE)=0,"",VLOOKUP(TBL_Summary[[#This Row],[CATEGORIA]],TBL_RankingData,3,FALSE)) ->  | E8: =IF(OR(TBL_Summary[[#This Row],[CUSTO ESTIMADO]]="",TBL_Summary[[#This Row],[CUSTO REAL]]=""),"",TBL_Summary[[#This Row],[CUSTO ESTIMADO]]-TBL_Summary[[#This Row],[CUSTO REAL]]) ->  | F8: =TBL_Summary[[#This Row],[CUSTO ESTIMADO]]/SUM(TBL_Summary[CUSTO ESTIMADO]) -> 10.1% | J8: Flores e decorações | K8: =TBL_FlowersAndDecor[[#Totals],[ESTIMADO]] -> 3000 | L8: =TBL_FlowersAndDecor[[#Totals],[REAL]] -> 0 | M8: 2999.97 | N8: 3 | O8: 3 | P8: Flores e decorações
B9: Fotografias e vídeo | C9: =VLOOKUP(TBL_Summary[[#This Row],[CATEGORIA]],TBL_RankingData,2,FALSE) -> R$ 2,500 | D9: =IF(VLOOKUP(TBL_Summary[[#This Row],[CATEGORIA]],TBL_RankingData,3,FALSE)=0,"",VLOOKUP(TBL_Summary[[#This Row],[CATEGORIA]],TBL_RankingData,3,FALSE)) ->  | E9: =IF(OR(TBL_Summary[[#This Row],[CUSTO ESTIMADO]]="",TBL_Summary[[#This Row],[CUSTO REAL]]=""),"",TBL_Summary[[#This Row],[CUSTO ESTIMADO]]-TBL_Summary[[#This Row],[CUSTO REAL]]) ->  | F9: =TBL_Summary[[#This Row],[CUSTO ESTIMADO]]/SUM(TBL_Summary[CUSTO ESTIMADO]) -> 8.4% | J9: Música | K9: =TBL_Music[[#Totals],[ESTIMADO]] -> 1800 | L9: =TBL_Music[[#Totals],[REAL]] -> 0 | M9: 1799.96 | N9: 5 | O9: 4 | P9: Fotografias e vídeo
B10: Música | C10: =VLOOKUP(TBL_Summary[[#This Row],[CATEGORIA]],TBL_RankingData,2,FALSE) -> R$ 1,800 | D10: =IF(VLOOKUP(TBL_Summary[[#This Row],[CATEGORIA]],TBL_RankingData,3,FALSE)=0,"",VLOOKUP(TBL_Summary[[#This Row],[CATEGORIA]],TBL_RankingData,3,FALSE)) ->  | E10: =IF(OR(TBL_Summary[[#This Row],[CUSTO ESTIMADO]]="",TBL_Summary[[#This Row],[CUSTO REAL]]=""),"",TBL_Summary[[#This Row],[CUSTO ESTIMADO]]-TBL_Summary[[#This Row],[CUSTO REAL]]) ->  | F10: =TBL_Summary[[#This Row],[CUSTO ESTIMADO]]/SUM(TBL_Summary[CUSTO ESTIMADO]) -> 6.1% | J10: Fotografias e vídeo | K10: =TBL_PhotographsAndVideo[[#Totals],[ESTIMADO]] -> 2500 | L10: =TBL_PhotographsAndVideo[[#Totals],[REAL]] -> 0 | M10: 2499.95 | N10: 4 | O10: 5 | P10: Música
B11: Favores e presentes | C11: =VLOOKUP(TBL_Summary[[#This Row],[CATEGORIA]],TBL_RankingData,2,FALSE) -> R$ 1,100 | D11: =IF(VLOOKUP(TBL_Summary[[#This Row],[CATEGORIA]],TBL_RankingData,3,FALSE)=0,"",VLOOKUP(TBL_Summary[[#This Row],[CATEGORIA]],TBL_RankingData,3,FALSE)) ->  | E11: =IF(OR(TBL_Summary[[#This Row],[CUSTO ESTIMADO]]="",TBL_Summary[[#This Row],[CUSTO REAL]]=""),"",TBL_Summary[[#This Row],[CUSTO ESTIMADO]]-TBL_Summary[[#This Row],[CUSTO REAL]]) ->  | F11: =TBL_Summary[[#This Row],[CUSTO ESTIMADO]]/SUM(TBL_Summary[CUSTO ESTIMADO]) -> 3.7% | J11: Favores e presentes | K11: =TBL_FavorsAndGifts[[#Totals],[ESTIMADO]] -> 1100 | L11: =TBL_FavorsAndGifts[[#Totals],[REAL]] -> 0 | M11: 1099.94 | N11: 6 | O11: 6 | P11: Favores e presentes
B12: =P12 -> Alianças de casamento | C12: =VLOOKUP(TBL_Summary[[#This Row],[CATEGORIA]],TBL_RankingData,2,FALSE) -> R$ 1,100 | D12: =IF(VLOOKUP(TBL_Summary[[#This Row],[CATEGORIA]],TBL_RankingData,3,FALSE)=0,"",VLOOKUP(TBL_Summary[[#This Row],[CATEGORIA]],TBL_RankingData,3,FALSE)) ->  | E12: =IF(OR(TBL_Summary[[#This Row],[CUSTO ESTIMADO]]="",TBL_Summary[[#This Row],[CUSTO REAL]]=""),"",TBL_Summary[[#This Row],[CUSTO ESTIMADO]]-TBL_Summary[[#This Row],[CUSTO REAL]]) ->  | F12: =TBL_Summary[[#This Row],[CUSTO ESTIMADO]]/SUM(TBL_Summary[CUSTO ESTIMADO]) -> 3.7% | J12: Cerimônia | K12: =TBL_Ceremony[[#Totals],[ESTIMADO]] -> 800 | L12: =TBL_Ceremony[[#Totals],[REAL]] -> 0 | M12: 799.93 | N12: 8 | O12: 7 | P12: Alianças de casamento
B13: Cerimônia | C13: =VLOOKUP(TBL_Summary[[#This Row],[CATEGORIA]],TBL_RankingData,2,FALSE) -> R$ 800 | D13: =IF(VLOOKUP(TBL_Summary[[#This Row],[CATEGORIA]],TBL_RankingData,3,FALSE)=0,"",VLOOKUP(TBL_Summary[[#This Row],[CATEGORIA]],TBL_RankingData,3,FALSE)) ->  | E13: =IF(OR(TBL_Summary[[#This Row],[CUSTO ESTIMADO]]="",TBL_Summary[[#This Row],[CUSTO REAL]]=""),"",TBL_Summary[[#This Row],[CUSTO ESTIMADO]]-TBL_Summary[[#This Row],[CUSTO REAL]]) ->  | F13: =TBL_Summary[[#This Row],[CUSTO ESTIMADO]]/SUM(TBL_Summary[CUSTO ESTIMADO]) -> 2.7% | J13: Papelaria | K13: =TBL_Stationery[[#Totals],[ESTIMADO]] -> 500 | L13: =TBL_Stationery[[#Totals],[REAL]] -> 0 | M13: 499.92 | N13: 9 | O13: 8 | P13: Cerimônia
B14: Papelaria | C14: =VLOOKUP(TBL_Summary[[#This Row],[CATEGORIA]],TBL_RankingData,2,FALSE) -> R$ 500 | D14: =IF(VLOOKUP(TBL_Summary[[#This Row],[CATEGORIA]],TBL_RankingData,3,FALSE)=0,"",VLOOKUP(TBL_Summary[[#This Row],[CATEGORIA]],TBL_RankingData,3,FALSE)) ->  | E14: =IF(OR(TBL_Summary[[#This Row],[CUSTO ESTIMADO]]="",TBL_Summary[[#This Row],[CUSTO REAL]]=""),"",TBL_Summary[[#This Row],[CUSTO ESTIMADO]]-TBL_Summary[[#This Row],[CUSTO REAL]]) ->  | F14: =TBL_Summary[[#This Row],[CUSTO ESTIMADO]]/SUM(TBL_Summary[CUSTO ESTIMADO]) -> 1.7% | J14: Alianças de casamento | K14: =TBL_WeddingRings[[#Totals],[ESTIMADO]] -> 1100 | L14: =TBL_WeddingRings[[#Totals],[REAL]] -> 0 | M14: 1099.91 | N14: 7 | O14: 9 | P14: Papelaria
B15: Transporte | C15: =VLOOKUP(TBL_Summary[[#This Row],[CATEGORIA]],TBL_RankingData,2,FALSE) -> R$ 450 | D15: =IF(VLOOKUP(TBL_Summary[[#This Row],[CATEGORIA]],TBL_RankingData,3,FALSE)=0,"",VLOOKUP(TBL_Summary[[#This Row],[CATEGORIA]],TBL_RankingData,3,FALSE)) ->  | E15: =IF(OR(TBL_Summary[[#This Row],[CUSTO ESTIMADO]]="",TBL_Summary[[#This Row],[CUSTO REAL]]=""),"",TBL_Summary[[#This Row],[CUSTO ESTIMADO]]-TBL_Summary[[#This Row],[CUSTO REAL]]) ->  | F15: =TBL_Summary[[#This Row],[CUSTO ESTIMADO]]/SUM(TBL_Summary[CUSTO ESTIMADO]) -> 1.5% | J15: Transporte | K15: =TBL_Transportation[[#Totals],[ESTIMADO]] -> 450 | L15: =TBL_Transportation[[#Totals],[REAL]] -> 0 | M15: 449.9 | N15: 10 | O15: 10 | P15: Transporte
B16: Total | C16: =SUBTOTAL(109,TBL_Summary[CUSTO ESTIMADO]) -> R$ 29,750 | D16: =SUBTOTAL(109,TBL_Summary[CUSTO REAL]) -> R$ 15,700 | E16: =TBL_Summary[[#Totals],[CUSTO ESTIMADO]]-TBL_Summary[[#Totals],[CUSTO REAL]] -> R$ 14,050 | F16: =SUBTOTAL(109,TBL_Summary[% DO ORÇAMENTO]) -> 100%

Sheet Detalhes do Orçamento
B2: DETALHES DO ORÇAMENTO
B4: RECEPÇÃO | C4: ESTIMADO | D4: REAL | E4: VARIAÇÃO
B5: Local e locações | C5: R$ 8,000.00 | D5: R$ 7,800.00 | E5: =IF(OR(TBL_Reception[[#This Row],[ESTIMADO]]="",TBL_Reception[[#This Row],[REAL]]=""),"",TBL_Reception[[#This Row],[ESTIMADO]]-TBL_Reception[[#This Row],[REAL]]) -> R$ 200.00
B6: Comida e serviço | C6: R$ 4,000.00 | D6: R$ 4,200.00 | E6: =IF(OR(TBL_Reception[[#This Row],[ESTIMADO]]="",TBL_Reception[[#This Row],[REAL]]=""),"",TBL_Reception[[#This Row],[ESTIMADO]]-TBL_Reception[[#This Row],[REAL]]) -> -R$ 200.00
B7: Bebidas | C7: R$ 1,000.00 | D7: R$ 800.00 | E7: =IF(OR(TBL_Reception[[#This Row],[ESTIMADO]]="",TBL_Reception[[#This Row],[REAL]]=""),"",TBL_Reception[[#This Row],[ESTIMADO]]-TBL_Reception[[#This Row],[REAL]]) -> R$ 200.00
B8: Bolo | C8: R$ 1,000.00 | E8: =IF(OR(TBL_Reception[[#This Row],[ESTIMADO]]="",TBL_Reception[[#This Row],[REAL]]=""),"",TBL_Reception[[#This Row],[ESTIMADO]]-TBL_Reception[[#This Row],[REAL]]) -> 
B9: Taxas diversas | C9: R$ 500.00 | E9: =IF(OR(TBL_Reception[[#This Row],[ESTIMADO]]="",TBL_Reception[[#This Row],[REAL]]=""),"",TBL_Reception[[#This Row],[ESTIMADO]]-TBL_Reception[[#This Row],[REAL]]) -> 
B10: TOTAL DA FESTA | C10: =SUBTOTAL(109,TBL_Reception[ESTIMADO]) -> R$ 14,500.00 | D10: =SUBTOTAL(109,TBL_Reception[REAL]) -> R$ 12,800.00 | E10: =TBL_Reception[[#Totals],[ESTIMADO]]-TBL_Reception[[#Totals],[REAL]] -> R$ 1,700.00
B13: VESTIMENTA | C13: ESTIMADO | D13: REAL | E13: VARIAÇÃO
B14: Smoking, terno e/ou vestidos | C14: R$ 3,000.00 | D14: R$ 2,900.00 | E14: =IF(OR(TBL_Attire[[#This Row],[ESTIMADO]]="",TBL_Attire[[#This Row],[REAL]]=""),"",TBL_Attire[[#This Row],[ESTIMADO]]-TBL_Attire[[#This Row],[REAL]]) -> R$ 100.00
B15: Alterações | C15: R$ 100.00 | E15: =IF(OR(TBL_Attire[[#This Row],[ESTIMADO]]="",TBL_Attire[[#This Row],[REAL]]=""),"",TBL_Attire[[#This Row],[ESTIMADO]]-TBL_Attire[[#This Row],[REAL]]) -> 
B16: Véu e grinalda | C16: R$ 200.00 | E16: =IF(OR(TBL_Attire[[#This Row],[ESTIMADO]]="",TBL_Attire[[#This Row],[REAL]]=""),"",TBL_Attire[[#This Row],[ESTIMADO]]-TBL_Attire[[#This Row],[REAL]]) -> 
B17: Acessórios | C17: R$ 100.00 | E17: =IF(OR(TBL_Attire[[#This Row],[ESTIMADO]]="",TBL_Attire[[#This Row],[REAL]]=""),"",TBL_Attire[[#This Row],[ESTIMADO]]-TBL_Attire[[#This Row],[REAL]]) -> 
B18: Cabelo e maquiagem | C18: R$ 500.00 | E18: =IF(OR(TBL_Attire[[#This Row],[ESTIMADO]]="",TBL_Attire[[#This Row],[REAL]]=""),"",TBL_Attire[[#This Row],[ESTIMADO]]-TBL_Attire[[#This Row],[REAL]]) -> 
B19: Taxas diversas | C19: R$ 100.00 | E19: =IF(OR(TBL_Attire[[#This Row],[ESTIMADO]]="",TBL_Attire[[#This Row],[REAL]]=""),"",TBL_Attire[[#This Row],[ESTIMADO]]-TBL_Attire[[#This Row],[REAL]]) -> 
B20: TOTAL COM VESTIMENTA | C20: =SUBTOTAL(109,TBL_Attire[ESTIMADO]) -> R$ 4,000.00 | D20: =SUBTOTAL(109,TBL_Attire[REAL]) -> R$ 2,900.00 | E20: =TBL_Attire[[#Totals],[ESTIMADO]]-TBL_Attire[[#Totals],[REAL]] -> R$ 1,100.00
B23: FLORES E DECORAÇÕES | C23: ESTIMADO | D23: REAL | E23: VARIAÇÃO
B24: Arranjos florais para cerimônia | C24: R$ 1,000.00 | E24: =IF(OR(TBL_FlowersAndDecor[[#This Row],[ESTIMADO]]="",TBL_FlowersAndDecor[[#This Row],[REAL]]=""),"",TBL_FlowersAndDecor[[#This Row],[ESTIMADO]]-TBL_FlowersAndDecor[[#This Row],[REAL]]) -> 
B25: Botões e Cesta da dama de honra | C25: R$ 500.00 | E25: =IF(OR(TBL_FlowersAndDecor[[#This Row],[ESTIMADO]]="",TBL_FlowersAndDecor[[#This Row],[REAL]]=""),"",TBL_FlowersAndDecor[[#This Row],[ESTIMADO]]-TBL_FlowersAndDecor[[#This Row],[REAL]]) -> 
B26: Almofada dos anéis | C26: R$ 100.00 | E26: =IF(OR(TBL_FlowersAndDecor[[#This Row],[ESTIMADO]]="",TBL_FlowersAndDecor[[#This Row],[REAL]]=""),"",TBL_FlowersAndDecor[[#This Row],[ESTIMADO]]-TBL_FlowersAndDecor[[#This Row],[REAL]]) -> 
B27: Buquês | C27: R$ 500.00 | E27: =IF(OR(TBL_FlowersAndDecor[[#This Row],[ESTIMADO]]="",TBL_FlowersAndDecor[[#This Row],[REAL]]=""),"",TBL_FlowersAndDecor[[#This Row],[ESTIMADO]]-TBL_FlowersAndDecor[[#This Row],[REAL]]) -> 
B28: Flores de lapela | C28: R$ 100.00 | E28: =IF(OR(TBL_FlowersAndDecor[[#This Row],[ESTIMADO]]="",TBL_FlowersAndDecor[[#This Row],[REAL]]=""),"",TBL_FlowersAndDecor[[#This Row],[ESTIMADO]]-TBL_FlowersAndDecor[[#This Row],[REAL]]) -> 
B29: Corpetes | C29: R$ 200.00 | E29: =IF(OR(TBL_FlowersAndDecor[[#This Row],[ESTIMADO]]="",TBL_FlowersAndDecor[[#This Row],[REAL]]=""),"",TBL_FlowersAndDecor[[#This Row],[ESTIMADO]]-TBL_FlowersAndDecor[[#This Row],[REAL]]) -> 
B30: Decoração da recepção | C30: R$ 300.00 | E30: =IF(OR(TBL_FlowersAndDecor[[#This Row],[ESTIMADO]]="",TBL_FlowersAndDecor[[#This Row],[REAL]]=""),"",TBL_FlowersAndDecor[[#This Row],[ESTIMADO]]-TBL_FlowersAndDecor[[#This Row],[REAL]]) -> 
B31: Iluminação | C31: R$ 200.00 | E31: =IF(OR(TBL_FlowersAndDecor[[#This Row],[ESTIMADO]]="",TBL_FlowersAndDecor[[#This Row],[REAL]]=""),"",TBL_FlowersAndDecor[[#This Row],[ESTIMADO]]-TBL_FlowersAndDecor[[#This Row],[REAL]]) -> 
B32: Taxas diversas | C32: R$ 100.00 | E32: =IF(OR(TBL_FlowersAndDecor[[#This Row],[ESTIMADO]]="",TBL_FlowersAndDecor[[#This Row],[REAL]]=""),"",TBL_FlowersAndDecor[[#This Row],[ESTIMADO]]-TBL_FlowersAndDecor[[#This Row],[REAL]]) -> 
B33: TOTAL DE FLORES E DECORAÇÕES | C33: =SUBTOTAL(109,TBL_FlowersAndDecor[ESTIMADO]) -> R$ 3,000.00 | D33: =SUBTOTAL(109,TBL_FlowersAndDecor[REAL]) -> R$ 0.00 | E33: =TBL_FlowersAndDecor[[#Totals],[ESTIMADO]]-TBL_FlowersAndDecor[[#Totals],[REAL]] -> R$ 3,000.00
B36: MÚSICA | C36: ESTIMADO | D36: REAL | E36: VARIAÇÃO
B37: Músicos da cerimônia | C37: R$ 700.00 | E37: =IF(OR(TBL_Music[[#This Row],[ESTIMADO]]="",TBL_Music[[#This Row],[REAL]]=""),"",TBL_Music[[#This Row],[ESTIMADO]]-TBL_Music[[#This Row],[REAL]]) -> 
B38: Músicos da hora do coquetel | C38: R$ 300.00 | E38: =IF(OR(TBL_Music[[#This Row],[ESTIMADO]]="",TBL_Music[[#This Row],[REAL]]=""),"",TBL_Music[[#This Row],[ESTIMADO]]-TBL_Music[[#This Row],[REAL]]) -> 
B39: Banda da recepção, DJ ou entretenimento | C39: R$ 200.00 | E39: =IF(OR(TBL_Music[[#This Row],[ESTIMADO]]="",TBL_Music[[#This Row],[REAL]]=""),"",TBL_Music[[#This Row],[ESTIMADO]]-TBL_Music[[#This Row],[REAL]]) -> 
B40: Aluguel de sistema de som ou de pista de dança | C40: R$ 400.00 | E40: =IF(OR(TBL_Music[[#This Row],[ESTIMADO]]="",TBL_Music[[#This Row],[REAL]]=""),"",TBL_Music[[#This Row],[ESTIMADO]]-TBL_Music[[#This Row],[REAL]]) -> 
B41: Taxas diversas | C41: R$ 200.00 | E41: =IF(OR(TBL_Music[[#This Row],[ESTIMADO]]="",TBL_Music[[#This Row],[REAL]]=""),"",TBL_Music[[#This Row],[ESTIMADO]]-TBL_Music[[#This Row],[REAL]]) -> 
B42: TOTAL DE MÚSICAS | C42: =SUBTOTAL(109,TBL_Music[ESTIMADO]) -> R$ 1,800.00 | D42: =SUBTOTAL(109,TBL_Music[REAL]) -> R$ 0.00 | E42: =TBL_Music[[#Totals],[ESTIMADO]]-TBL_Music[[#Totals],[REAL]] -> R$ 1,800.00
B45: FOTOGRAFIA E VÍDEO | C45: ESTIMADO | D45: REAL | E45: VARIAÇÃO
B46: Fotografia | C46: R$ 1,000.00 | E46: =IF(OR(TBL_PhotographsAndVideo[[#This Row],[ESTIMADO]]="",TBL_PhotographsAndVideo[[#This Row],[REAL]]=""),"",TBL_PhotographsAndVideo[[#This Row],[ESTIMADO]]-TBL_PhotographsAndVideo[[#This Row],[REAL]]) -> 
B47: Videografia | C47: R$ 800.00 | E47: =IF(OR(TBL_PhotographsAndVideo[[#This Row],[ESTIMADO]]="",TBL_PhotographsAndVideo[[#This Row],[REAL]]=""),"",TBL_PhotographsAndVideo[[#This Row],[ESTIMADO]]-TBL_PhotographsAndVideo[[#This Row],[REAL]]) -> 
B48: Impressões e álbuns adicionais | C48: R$ 500.00 | E48: =IF(OR(TBL_PhotographsAndVideo[[#This Row],[ESTIMADO]]="",TBL_PhotographsAndVideo[[#This Row],[REAL]]=""),"",TBL_PhotographsAndVideo[[#This Row],[ESTIMADO]]-TBL_PhotographsAndVideo[[#This Row],[REAL]]) -> 
B49: Taxas diversas | C49: R$ 200.00 | E49: =IF(OR(TBL_PhotographsAndVideo[[#This Row],[ESTIMADO]]="",TBL_PhotographsAndVideo[[#This Row],[REAL]]=""),"",TBL_PhotographsAndVideo[[#This Row],[ESTIMADO]]-TBL_PhotographsAndVideo[[#This Row],[REAL]]) -> 
B50: TOTAL DE FOTOGRAFIA E VÍDEO | C50: =SUBTOTAL(109,TBL_PhotographsAndVideo[ESTIMADO]) -> R$ 2,500.00 | D50: =SUBTOTAL(109,TBL_PhotographsAndVideo[REAL]) -> R$ 0.00 | E50: =TBL_PhotographsAndVideo[[#Totals],[ESTIMADO]]-TBL_PhotographsAndVideo[[#Totals],[REAL]] -> R$ 2,500.00
B53: FAVORES E PRESENTES | C53: ESTIMADO | D53: REAL | E53: VARIAÇÃO
B54: Presentes de boas-vindas | C54: R$ 700.00 | E54: =IF(OR(TBL_FavorsAndGifts[[#This Row],[ESTIMADO]]="",TBL_FavorsAndGifts[[#This Row],[REAL]]=""),"",TBL_FavorsAndGifts[[#This Row],[ESTIMADO]]-TBL_FavorsAndGifts[[#This Row],[REAL]]) -> 
B55: Presentes de festa | C55: R$ 200.00 | E55: =IF(OR(TBL_FavorsAndGifts[[#This Row],[ESTIMADO]]="",TBL_FavorsAndGifts[[#This Row],[REAL]]=""),"",TBL_FavorsAndGifts[[#This Row],[ESTIMADO]]-TBL_FavorsAndGifts[[#This Row],[REAL]]) -> 
B56: Taxas diversas | C56: R$ 200.00 | E56: =IF(OR(TBL_FavorsAndGifts[[#This Row],[ESTIMADO]]="",TBL_FavorsAndGifts[[#This Row],[REAL]]=""),"",TBL_FavorsAndGifts[[#This Row],[ESTIMADO]]-TBL_FavorsAndGifts[[#This Row],[REAL]]) -> 
B57: TOTAL DE FAVORES E PRESENTES | C57: =SUBTOTAL(109,TBL_FavorsAndGifts[ESTIMADO]) -> R$ 1,100.00 | D57: =SUBTOTAL(109,TBL_FavorsAndGifts[REAL]) -> R$ 0.00 | E57: =TBL_FavorsAndGifts[[#Totals],[ESTIMADO]]-TBL_FavorsAndGifts[[#Totals],[REAL]] -> R$ 1,100.00
B60: CERIMÔNIA | C60: ESTIMADO | D60: REAL | E60: VARIAÇÃO
B61: Pagamento do local | C61: R$ 500.00 | E61: =IF(OR(TBL_Ceremony[[#This Row],[ESTIMADO]]="",TBL_Ceremony[[#This Row],[REAL]]=""),"",TBL_Ceremony[[#This Row],[ESTIMADO]]-TBL_Ceremony[[#This Row],[REAL]]) -> 
B62: Pagamento do sacerdote ou doação à igreja | C62: R$ 200.00 | E62: =IF(OR(TBL_Ceremony[[#This Row],[ESTIMADO]]="",TBL_Ceremony[[#This Row],[REAL]]=""),"",TBL_Ceremony[[#This Row],[ESTIMADO]]-TBL_Ceremony[[#This Row],[REAL]]) -> 
B63: Taxas diversas | C63: R$ 100.00 | E63: =IF(OR(TBL_Ceremony[[#This Row],[ESTIMADO]]="",TBL_Ceremony[[#This Row],[REAL]]=""),"",TBL_Ceremony[[#This Row],[ESTIMADO]]-TBL_Ceremony[[#This Row],[REAL]]) -> 
B64: TOTAL DA CERIMÔNIA | C64: =SUBTOTAL(109,TBL_Ceremony[ESTIMADO]) -> R$ 800.00 | D64: =SUBTOTAL(109,TBL_Ceremony[REAL]) -> R$ 0.00 | E64: =TBL_Ceremony[[#Totals],[ESTIMADO]]-TBL_Ceremony[[#Totals],[REAL]] -> R$ 800.00
B67: ARTIGOS DE PAPELARIA | C67: ESTIMADO | D67: REAL | E67: VARIAÇÃO
B68: Cartões de lembrete | C68: R$ 50.00 | E68: =IF(OR(TBL_Stationery[[#This Row],[ESTIMADO]]="",TBL_Stationery[[#This Row],[REAL]]=""),"",TBL_Stationery[[#This Row],[ESTIMADO]]-TBL_Stationery[[#This Row],[REAL]]) -> 
B69: Convites e RSVPs | C69: R$ 100.00 | E69: =IF(OR(TBL_Stationery[[#This Row],[ESTIMADO]]="",TBL_Stationery[[#This Row],[REAL]]=""),"",TBL_Stationery[[#This Row],[ESTIMADO]]-TBL_Stationery[[#This Row],[REAL]]) -> 
B70: Programas | C70: R$ 50.00 | E70: =IF(OR(TBL_Stationery[[#This Row],[ESTIMADO]]="",TBL_Stationery[[#This Row],[REAL]]=""),"",TBL_Stationery[[#This Row],[ESTIMADO]]-TBL_Stationery[[#This Row],[REAL]]) -> 
B71: Assentos e cartões de lugar | C71: R$ 50.00 | E71: =IF(OR(TBL_Stationery[[#This Row],[ESTIMADO]]="",TBL_Stationery[[#This Row],[REAL]]=""),"",TBL_Stationery[[#This Row],[ESTIMADO]]-TBL_Stationery[[#This Row],[REAL]]) -> 
B72: Cartões de menu | C72: R$ 50.00 | E72: =IF(OR(TBL_Stationery[[#This Row],[ESTIMADO]]="",TBL_Stationery[[#This Row],[REAL]]=""),"",TBL_Stationery[[#This Row],[ESTIMADO]]-TBL_Stationery[[#This Row],[REAL]]) -> 
B73: Notas de agradecimento | C73: R$ 50.00 | E73: =IF(OR(TBL_Stationery[[#This Row],[ESTIMADO]]="",TBL_Stationery[[#This Row],[REAL]]=""),"",TBL_Stationery[[#This Row],[ESTIMADO]]-TBL_Stationery[[#This Row],[REAL]]) -> 
B74: Postagem | C74: R$ 50.00 | E74: =IF(OR(TBL_Stationery[[#This Row],[ESTIMADO]]="",TBL_Stationery[[#This Row],[REAL]]=""),"",TBL_Stationery[[#This Row],[ESTIMADO]]-TBL_Stationery[[#This Row],[REAL]]) -> 
B75: Taxas diversas | C75: R$ 100.00 | E75: =IF(OR(TBL_Stationery[[#This Row],[ESTIMADO]]="",TBL_Stationery[[#This Row],[REAL]]=""),"",TBL_Stationery[[#This Row],[ESTIMADO]]-TBL_Stationery[[#This Row],[REAL]]) -> 
B76: TOTAL DE ITENS DE PAPELARIA | C76: =SUBTOTAL(109,TBL_Stationery[ESTIMADO]) -> R$ 500.00 | D76: =SUBTOTAL(109,TBL_Stationery[REAL]) -> R$ 0.00 | E76: =TBL_Stationery[[#Totals],[ESTIMADO]]-TBL_Stationery[[#Totals],[REAL]] -> R$ 500.00
B79: ALIANÇAS DE CASAMENTO | C79: ESTIMADO | D79: REAL | E79: VARIAÇÃO
B80: Alianças de casamento | C80: R$ 1,000.00 | E80: =IF(OR(TBL_WeddingRings[[#This Row],[ESTIMADO]]="",TBL_WeddingRings[[#This Row],[REAL]]=""),"",TBL_WeddingRings[[#This Row],[ESTIMADO]]-TBL_WeddingRings[[#This Row],[REAL]]) -> 
B81: Acessórios do anel | C81: R$ 100.00 | E81: =IF(OR(TBL_WeddingRings[[#This Row],[ESTIMADO]]="",TBL_WeddingRings[[#This Row],[REAL]]=""),"",TBL_WeddingRings[[#This Row],[ESTIMADO]]-TBL_WeddingRings[[#This Row],[REAL]]) -> 
B82: TOTAL DE ALIANÇAS DE CASAMENTO | C82: =SUBTOTAL(109,TBL_WeddingRings[ESTIMADO]) -> R$ 1,100.00 | D82: =SUBTOTAL(109,TBL_WeddingRings[REAL]) -> R$ 0.00 | E82: =TBL_WeddingRings[[#Totals],[ESTIMADO]]-TBL_WeddingRings[[#Totals],[REAL]] -> R$ 1,100.00
B85: TRANSPORTE | C85: ESTIMADO | D85: REAL | E85: VARIAÇÃO
B86: Aluguel de Carro principal | C86: R$ 100.00 | E86: =IF(OR(TBL_Transportation[[#This Row],[ESTIMADO]]="",TBL_Transportation[[#This Row],[REAL]]=""),"",TBL_Transportation[[#This Row],[ESTIMADO]]-TBL_Transportation[[#This Row],[REAL]]) -> 
B87: Aluguel de Carro dos convidados | C87: R$ 100.00 | E87: =IF(OR(TBL_Transportation[[#This Row],[ESTIMADO]]="",TBL_Transportation[[#This Row],[REAL]]=""),"",TBL_Transportation[[#This Row],[ESTIMADO]]-TBL_Transportation[[#This Row],[REAL]]) -> 
B88: Transportes para convidados de fora da cidade | C88: R$ 100.00 | E88: =IF(OR(TBL_Transportation[[#This Row],[ESTIMADO]]="",TBL_Transportation[[#This Row],[REAL]]=""),"",TBL_Transportation[[#This Row],[ESTIMADO]]-TBL_Transportation[[#This Row],[REAL]]) -> 
B89: Estacionamento com manobrista | C89: R$ 50.00 | E89: =IF(OR(TBL_Transportation[[#This Row],[ESTIMADO]]="",TBL_Transportation[[#This Row],[REAL]]=""),"",TBL_Transportation[[#This Row],[ESTIMADO]]-TBL_Transportation[[#This Row],[REAL]]) -> 
B90: Taxas diversas | C90: R$ 100.00 | E90: =IF(OR(TBL_Transportation[[#This Row],[ESTIMADO]]="",TBL_Transportation[[#This Row],[REAL]]=""),"",TBL_Transportation[[#This Row],[ESTIMADO]]-TBL_Transportation[[#This Row],[REAL]]) -> 
B91: TOTAL DE TRANSPORTE | C91: =SUBTOTAL(109,TBL_Transportation[ESTIMADO]) -> R$ 450.00 | D91: =SUBTOTAL(109,TBL_Transportation[REAL]) -> R$ 0.00 | E91: =TBL_Transportation[[#Totals],[ESTIMADO]]-TBL_Transportation[[#Totals],[REAL]] -> R$ 450.00
